Cogmind - Beta 11 X7 @@@ ROGUE MODE // 2021.10.01 @ 02:32:24 Player: Runia Result: System corrupted Performance ------------- Evolutions (5) 2500 Regions Visited (21) 4200 Robots Destroyed (289) 1445 Value Destroyed (12147) 12147 Prototype IDs (51) 1020 Alien Tech Used (0) 0 Bonus (3229) 3229 TOTAL SCORE: 24541 Bonus ------- High Alert Combat Kills 1034 Follower Combat Kills 1690 Entered Garrisons 400 Used RIF Installer 1000 Network Hubs Disabled 600 Aligned with FarCom 300 A7 Reached Mainframe 300 Friendly Fire -2095 Cogmind --------- Core Integrity 0/1000 Matter 260/300 Energy 378/510 System Corruption 100% Temperature Cool (0) Movement Walking (120) Location -5/Factory Parts ------- > --- POWER (2) -------- Light Fission Core > --- PROPULSION (5) --- Carbon-fiber Leg Flexi-carbon Leg Flexi-carbon Leg Flexi-carbon Leg Compact Wheel > --- UTILITY (7) ------ Large Storage Unit Energy Well Experimental Targeting Computer Experimental Targeting Computer Phase Shifter Relay Coupler [NC] (20) Relay Coupler [Grunt] (30) > --- WEAPON (3) ------- Gauss Rifle Improved Remote Datajack Field Lobotomy Kit > --- INVENTORY (15) --- Improved Trap Scanner Relay Coupler [Heavy] (18) Neutron Cannon Gauss Rifle KE Penetrator Enhanced Coil Gun Improved Remote Datajack Phasing Sabre Lance Lance CR-A16's Behemoth Slayer Peak State ------------ > --- POWER ------------ Quantum Reactor Quantum Reactor > --- PROPULSION ------- Enhanced Biometal Leg Enhanced Biometal Leg Enhanced Biometal Leg > --- UTILITY ---------- Advanced Power Amplifier Large Storage Unit Experimental Targeting Computer Experimental Targeting Computer Precision Energy Filter Experimental Phase Shifter Centrium Medium Armor Plating > --- WEAPON ----------- EMDS Lance > --- INVENTORY -------- Energy Well Improved Trap Scanner Improved Heavy Armor Plating EM Dispersion Field Hacking Suite High-powered Tractor Beam Neutron Cannon Gauss Rifle Enhanced Coil Gun Improved Remote Datajack Improved Remote Datajack Field Lobotomy Kit Phasing Sabre CR-A16's Behemoth Slayer [Rating: 125] Favorites ----------- Power Antimatter Reactor Engine Heavy Deuterium Engine Power Core Light Nuclear Core Reactor Antimatter Reactor Propulsion Advanced Treads Treads Advanced Treads Leg Enhanced Biometal Leg Wheel Armored Huge Wheel Utility High-capacity Storage Unit Device Improved Trap Scanner Storage High-capacity Storage Unit Processor Advanced Targeting Computer Hackware Relay Coupler [Grunt] Protection Centrium Medium Armor Plating Weapon Phasing Sabre Energy Gun Improved Medium Laser Energy Cannon Heavy Plasma Cannon Ballistic Gun Heavy Machine Gun Ballistic Cannon Slug Cannon Launcher Grenade Launcher Special Weapon Remote Datajack Slashing Weapon Phasing Sabre Piercing Weapon Lance Special Melee Weapon Improved Datajack Build | -11 -10 -10 -10 -9 -8 -8 -8 -8 -7 -7 -7 -7 -6 -6 -6 -6 -6 -6 -6 -6 -5 ------- Run | Scr Mat Min Exi Min Mat Gar Sto Gar Fac Low Low Zio Pro Fac Was Fac Ext Cet Arc Hub Fac Slots Evolved 10 | . . . . . 4 . . . 2 . . . . 2 . . . . . . 2 Power 1 | . . . . . . . . . . . . . . . . . . . . . 1 Propulsion 3 | . . . . . 1 . . . 1 . . . . . . . . . . . 1 Utility 5 | . . . . . 2 . . . 1 . . . . 2 . . . . . . . Weapon 1 | . . . . . 1 . . . . . . . . . . . . . . . . Parts Attached 436 | . 12 1 1 . 15 19 7 20 57 3 12 3 11 14 11 53 41 15 17 68 56 Power 16 | . 1 . . . 1 . 2 . 3 . . . . . 1 1 . . 1 3 3 Engine 7 | . . . . . 1 . 2 . 3 . . . . . . . . . . 1 . Core 3 | . 1 . . . . . . . . . . . . . . . . . . . 2 Reactor 6 | . . . . . . . . . . . . . . . 1 1 . . 1 2 1 Propulsion 60 | . 5 . 1 . 5 2 1 1 6 . . . . 2 3 . 9 2 1 10 12 Treads 25 | . 2 . . . 5 1 1 1 4 . . . . 2 3 . 3 2 1 . . Leg 22 | . 3 . . . . . . . . . . . . . . . 6 . . 7 6 Wheel 13 | . . . 1 . . 1 . . 2 . . . . . . . . . . 3 6 Hover . | . . . . . . . . . . . . . . . . . . . . . . Flight . | . . . . . . . . . . . . . . . . . . . . . . Utility 127 | . 3 . . . 5 4 3 3 10 . 4 1 2 5 2 24 12 3 7 20 19 Device 57 | . 1 . . . 3 . . . 2 . 2 . 1 2 . 10 6 1 5 11 13 Storage 8 | . 2 . . . . . . . 1 . . . . . . 1 1 . . 1 2 Processor 6 | . . . . . . . . 1 1 . 1 . . . . . . . . 2 1 Hackware 18 | . . . . . 1 1 2 2 4 . . . . . 1 3 1 . . 1 2 Protection 38 | . . . . . 1 3 1 . 2 . 1 1 1 3 1 10 4 2 2 5 1 Artifact . | . . . . . . . . . . . . . . . . . . . . . . Weapon 233 | . 3 1 . . 4 13 1 16 38 3 8 2 9 7 5 28 20 10 8 35 22 Energy Gun 16 | . 2 1 . . 3 5 . 3 1 . . . . . . . . 1 . . . Energy Cannon 14 | . . . . . . . . . 1 . . 1 2 . . 3 1 1 1 . 4 Ballistic Gun 74 | . . . . . . . . 2 12 1 2 1 2 . . 13 8 4 4 16 9 Ballistic Cannon 3 | . . . . . . . . . 2 . 1 . . . . . . . . . . Launcher 26 | . 1 . . . 1 5 . 5 2 1 1 . 2 . . 3 2 2 . . 1 Special Weapon 41 | . . . . . . . . . 10 . 3 . 2 3 3 4 6 1 . 6 3 Impact Weapon . | . . . . . . . . . . . . . . . . . . . . . . Slashing Weapon 48 | . . . . . . 3 . 4 10 1 1 . 1 4 . 5 2 1 3 13 . Piercing Weapon 8 | . . . . . . . . . . . . . . . 2 . 1 . . . 5 Special Melee Weapon 3 | . . . . . . . 1 2 . . . . . . . . . . . . . Unidentified Prototypes 18 | . 1 . . . . . . . 4 . . . 1 . . 1 . 3 . 6 2 Corrupted Parts 20 | . . . . . . . . . . . . . . . . . . 2 1 1 16 System Corruption 130 | . . . . . . . . . . . . . . . . . . 18 9 9 94 Parts Lost 55 | . . . . . 1 4 . 3 6 . 2 . . . . 4 5 1 1 13 15 Power 7 | . . . . . 1 1 . . 1 . . . . . . . . . . 1 3 Propulsion 16 | . . . . . . 2 . 1 2 . . . . . . . 2 . . 4 5 Utility 16 | . . . . . . . . . 1 . 1 . . . . 2 2 1 1 3 5 Weapon 16 | . . . . . . 1 . 2 2 . 1 . . . . 2 1 . . 5 2 Highest Loss Streak 4 | . . . . . 1 2 . 1 4 . 1 . . . . 2 3 1 1 4 4 Average Slot Usage (%) 87 | . 90 100 100 100 100 82 98 98 91 92 89 92 90 91 69 85 88 82 82 79 79 Engine 3 | . 3 . . . 6 . 8 9 6 7 7 7 7 6 . . . . . 2 . Core 1 | . 10 14 14 14 2 . . . . . . . . . . . . . . . . Reactor 2 | . . . . . . . . . . . . . . . 5 5 6 6 5 3 8 Treads 12 | . 4 28 18 14 18 18 27 26 15 15 15 15 15 13 8 13 9 10 12 6 . Leg 3 | . 23 . . . . . . . . . . . . . . . 8 5 . 5 13 Wheel 3 | . . . 9 14 9 5 . . 6 7 7 7 7 6 5 . . . . 1 3 Device 8 | . 4 14 14 14 14 18 7 . 1 7 4 3 . 12 . 14 14 1 12 12 11 Storage 7 | . 14 14 14 14 9 9 9 9 7 7 7 7 7 6 6 6 7 6 6 6 7 Processor 6 | . . . . . . . . 8 7 7 12 15 15 13 6 6 6 6 6 5 11 Hackware 7 | . . . . . 3 3 16 9 17 15 7 7 5 . 5 11 5 6 6 7 2 Protection 5 | . . . . . 9 . 2 9 2 . 2 3 7 12 6 6 9 17 10 6 3 Energy Gun 3 | . 14 27 28 28 27 22 9 8 . . . . . . . . . . . . . Energy Cannon 1 | . . . . . . . . . . . . 3 6 6 4 3 4 3 1 . 3 Ballistic Gun 8 | . 13 . . . . . . 8 16 19 8 11 14 6 . 6 7 9 13 14 3 Special Weapon 1 | . . . . . . . . . 2 . 2 3 . 1 7 2 3 . . . . Slashing Weapon 3 | . . . . . . 3 9 5 2 2 6 3 . 4 . 5 3 2 4 3 . Naked Turns . | . . . . . . . . . . . . . . . . . . . . . . Heaviest Build 117 | 13 32 32 32 32 37 44 42 44 72 67 77 75 75 79 115 108 96 108 108 117 101 Greatest Support 160 | 20 40 40 40 10 10 66 66 66 86 28 48 28 28 28 140 140 140 150 160 160 95 Greatest Overweight (x) 8 | . 1 . 3 3 3 4 . . 2 2 2 2 2 2 4 . 1 1 1 8 3 Average Overweight (x) 1 | . . . 2 3 3 . . . 1 2 1 2 2 2 3 . . . . 1 . Largest Inventory Capacity 20 | 8 15 15 15 15 15 15 15 15 20 20 20 20 20 20 20 20 20 20 20 20 15 Average Capacity 18 | 8 9 15 15 15 15 15 15 15 19 20 20 20 20 20 20 20 20 20 20 19 15 Most Carried 20 | 5 11 15 15 15 15 15 15 15 20 20 20 20 20 20 20 20 20 20 20 20 15 Average Carried 17 | 4 7 13 14 15 13 13 13 13 18 20 20 19 19 19 19 19 18 19 18 17 14 Final Capacity 20 | 8 15 15 15 15 15 15 15 15 20 20 20 20 20 20 20 20 20 20 20 15 15 Final Carried 20 | 5 11 15 15 15 14 14 13 15 20 20 20 20 20 20 20 18 20 20 19 15 11 Class Distribution -------------------- 24% | Mutant 23% | Scavenger-Mutant 18% | Bothacker-Mutant 5% | Skirmisher 5% | Bothacker-Assassin 4% | Bothacker-Skirmisher 4% | Scavenger-Skirmisher 3% | Commander-Skirmisher Dominant Class ---------------- Mutant | -10/Materials Mutant | -10/Mines Mutant | -10/Exiles Commander-Mutant | -9/Mines Commander-Skirmisher | -8/Materials Skirmisher | -8/Garrison Bothacker-Mutant | -8/Storage Bothacker-Mutant | -8/Garrison Bothacker-Mutant | -7/Factory Bothacker-Skirmisher | -7/Lower Caves Mutant | -7/Lower Caves Mutant | -7/Zion Gunner | -6/Proximity Caves Assassin | -6/Factory Mutant | -6/Waste Bothacker-Assassin | -6/Factory Scavenger-Mutant | -6/Extension Scavenger-Tank | -6/Cetus Scavenger-Mutant | -6/Archives Scavenger-Mutant | -6/Hub_04(d) Scavenger-Mutant | -5/Factory Resources | -11 -10 -10 -10 -9 -8 -8 -8 -8 -7 -7 -7 -7 -6 -6 -6 -6 -6 -6 -6 -6 -5 ----------- Run | Scr Mat Min Exi Min Mat Gar Sto Gar Fac Low Low Zio Pro Fac Was Fac Ext Cet Arc Hub Fac Matter Collected 9468 | 200 175 101 . . 135 230 270 268 948 64 415 82 233 205 161 628 849 231 404 2785 1084 Remotely . | . . . . . . . . . . . . . . . . . . . . . . Salvage Created 13913 | . 392 274 . . 502 430 488 403 822 26 329 79 220 123 1340 642 1266 424 466 2943 2744 Parts 674 | . 35 7 . . 16 34 29 30 57 . 15 4 8 5 32 33 40 18 33 150 128 Haulers Intercepted 11 | . 2 . . . 3 . 1 . . . . . 1 . . . . . . 2 2 Recyclers Shooed 12 | . . . . . 2 . 1 . . . . . . . . 1 5 . . . 3 Parts Field Recycled . | . . . . . . . . . . . . . . . . . . . . . . Retrieved Matter . | . . . . . . . . . . . . . . . . . . . . . . Parts Self-Destructed 26 | . . . . . . . . . . . 12 3 11 . . . . . . . . Prevented 1 | . . . . . . . . . . 1 . . . . . . . . . . . Kills | -11 -10 -10 -10 -9 -8 -8 -8 -8 -7 -7 -7 -7 -6 -6 -6 -6 -6 -6 -6 -6 -5 ------- Run | Scr Mat Min Exi Min Mat Gar Sto Gar Fac Low Low Zio Pro Fac Was Fac Ext Cet Arc Hub Fac Combat Hostiles Destroyed 195 | . 8 4 . . 3 23 6 21 14 . 10 1 6 . 5 7 15 6 2 35 29 Melee 36 | . . . . . . . 6 5 4 . 1 . . . 5 2 1 . 1 7 4 Guns 78 | . 8 4 . . 3 7 . 4 7 . 1 1 1 . . 2 4 1 1 28 6 Cannons 10 | . . . . . . . . . 1 . . . . . . 1 1 1 . . 6 AOE 57 | . . . . . . 16 . 12 2 . 8 . 5 . . . 9 2 . . 3 Classes Destroyed 19 | . 5 1 . . 2 1 . . 2 . 2 . 1 . 1 1 . . . 1 2 Worker 24 | . . . . . 1 . . . 1 . . . . 5 . 1 2 . . 10 4 Builder 10 | . . . . . . . . . 2 . . . . . . 1 2 . . 1 4 Tunneler 2 | . . . . . . . . . . . . . . . . 1 . . . . 1 Hauler 11 | . 2 . . . 3 . 1 . . . . . 1 . . . . . . 2 2 Recycler 15 | . . 1 . . 3 . 1 . . . . . . . . 1 4 . . 1 4 Mechanic 1 | . . . . . . . . . . . 1 . . . . . . . . . . Operator 13 | . 1 . . . . . . . . . . . . . . 1 . . 9 2 . Watcher 13 | . 2 . . . . . 1 . 2 . . . . . . . 1 1 . 4 2 Swarmer 42 | . 3 . . . . 11 . 14 1 . 2 . 3 1 . . 6 1 . . . Grunt 62 | . 5 4 . . 1 9 3 4 . . 4 . 1 . . 1 5 1 . 11 13 Brawler 3 | . . . . . . . . . . . 1 . . . . . 1 1 . . . Duelist 9 | . . . . . . 3 . . 2 . 3 . . . . . . . . . 1 Protector 2 | . . . . . . . . . . . . . . . . . . . . 2 . Sentry 26 | . . . . . 2 . 3 3 4 . . . . . . 1 4 . 2 6 1 Specialist 1 | . . . . . . . . . . . . . . . . . . . . . 1 Hunter 11 | . . . . . . . . . . . . . 2 . . 3 . . . 1 5 Programmer 23 | . . . . . . . . . 7 . . . . . . 2 . . . 7 7 Behemoth 1 | . . . . . . . . . . . . . . . . . . . . . 1 Compactor 5 | . . . . . . . . . . . . . . . 5 . . . . . . Cetus Guard 3 | . . . . . . . . . . . . . . . . . . 3 . . . Lightning 9 | . . . . . . . . . . . . . . . . . . . . 9 . Thug 1 | . . . . . . . . . . . . . . . . . 1 . . . . Savage 1 | . . . . . . . . . . . 1 . . . . . . . . . . Best Kill Streak 14 | . 3 1 . . 3 6 3 4 3 . 10 1 3 3 1 2 14 4 5 3 9 Combat Bots Only 9 | . 3 1 . . 3 6 2 4 3 . 7 1 3 . 1 2 9 3 1 3 6 Max Kills in Single Turn 4 | . 1 1 . . 1 2 1 2 2 . 2 1 2 1 1 1 4 1 1 2 3 Gunslinging 1 | . . . . . . . . . . . . . . . . . . . . . 1 Exploded 3 | . . . . . . 2 . 2 2 . 2 . 2 . . . 3 1 . . 1 Melee 1 | . . . . . . . 1 1 1 . 1 . . . 1 1 1 . 1 1 1 Uniques/NPCs Destroyed 1 | . . . . . . . . . . . . 1 . . . . . . . . . Imprinter (-7/Zion) Combat | -11 -10 -10 -10 -9 -8 -8 -8 -8 -7 -7 -7 -7 -6 -6 -6 -6 -6 -6 -6 -6 -5 -------- Run | Scr Mat Min Exi Min Mat Gar Sto Gar Fac Low Low Zio Pro Fac Was Fac Ext Cet Arc Hub Fac Damage Taken 15163 | . 436 151 . . 154 875 194 462 1343 . 310 11 297 . . 1339 1300 224 744 4458 2865 Core 1801 | . 37 47 . . 54 117 100 33 102 . 20 . 12 . . 52 152 50 20 360 645 Absorbed by Shields 126 | . . . . . . . . . . . . . . . . . 28 98 . . . Reduced by Siege Mode 86 | . . . . . . . . . . . . . . . . 23 53 . . 10 . Core Remaining (%) 63 | 100 . . . 66 . . . 44 . . . . 80 . . . . . . 25 . Volleys Fired 646 | . 39 14 . . 25 44 . 18 60 . 31 7 15 13 10 46 44 12 36 167 65 Largest 3 | . 2 2 . . 3 3 . 3 3 . 3 3 3 1 1 3 3 3 3 3 3 Hottest 240 | . 112 112 . . 177 182 . 149 115 . 81 126 126 30 30 148 150 240 148 96 125 Shots Fired 1267 | . 78 27 . . 71 77 . 24 115 . 33 11 23 13 11 68 75 20 62 462 97 Gun 976 | . 78 26 . . 70 54 . 12 79 . 3 4 8 . . 25 49 10 53 456 49 Cannon 91 | . . . . . . . . . 4 . 6 5 4 . 1 24 1 4 9 . 33 Launcher 97 | . . 1 . . 1 23 . 12 5 . 9 . 4 . . 7 16 6 . . 13 Special 103 | . . . . . . . . . 27 . 15 2 7 13 10 12 9 . . 6 2 Kinetic 814 | . 68 . . . . . . 6 79 . 9 4 8 . . 25 49 8 53 456 49 Thermal 250 | . 10 26 . . 70 54 . 6 4 . 13 7 4 . 5 24 1 6 9 . 11 Explosive 58 | . . 1 . . 1 23 . 12 2 . 9 . 4 . . 1 5 . . . . Electromagnetic 61 | . . . . . . . . . 3 . . . . . . 6 11 6 . . 35 Robot Hit Streak 44 | . 9 7 . . 13 10 . 8 12 . 6 6 9 14 11 16 15 12 10 34 44 Robot Miss Streak 6 | . 6 3 . . 4 5 . 5 5 . 3 2 2 1 . 1 1 1 3 4 1 Penetration Max 2 | . . . . . . . . . . . . . . . . . 1 . 1 2 2 Secondary Targets 13 | . 2 . . . . 1 . . . . . . . . . . 1 . . 6 3 Max Gunslinging Chain 1 | . 1 . . . . 1 . . . . . . . . . . 1 . . 1 1 Shots Hit Robots 1110 | . 48 17 . . 47 48 38 28 87 3 27 6 18 21 40 58 72 14 53 372 113 Core Hits 562 | . 25 8 . . 28 61 9 26 29 2 31 3 11 5 12 18 53 19 26 132 64 Critical Kills 17 | . . . . . . . . . . . . . . . . 1 . . 1 12 3 Critical Parts Destroyed 22 | . . . . . . . . . . . . . . . . . . . . 12 10 Critical Strikes 56 | . 1 3 . . 2 1 . 1 . . . . . . 2 1 . . 1 25 19 Burn 7 | . 1 3 . . 2 1 . . . . . . . . . . . . . . . Meltdown 1 | . . . . . . . . . . . . . . . . 1 . . . . . Destroy 39 | . . . . . . . . . . . . . . . . . . . 1 24 14 Corrupt 4 | . . . . . . . . . . . . . . . . . . . . . 4 Sever 2 | . . . . . . . . 1 . . . . . . . . . . . 1 . Puncture 3 | . . . . . . . . . . . . . . . 2 . . . . . 1 Melee Attacks 367 | . . . . . . 2 53 31 28 3 7 2 1 21 29 39 32 . 14 51 54 Impact . | . . . . . . . . . . . . . . . . . . . . . . Slashing 258 | . . . . . . 2 34 25 28 3 7 2 1 21 2 39 29 . 14 51 . Piercing 84 | . . . . . . . . . . . . . . . 27 . 3 . . . 54 Sneak Attacks 129 | . . . . . . . 22 16 9 1 3 . . 8 29 11 9 . 6 8 7 Combat Hostiles 74 | . . . . . . . 15 15 7 . 2 . . . 29 2 3 . . 1 . Follow-up Attacks 8 | . . . . . . . . . . . . . . . 2 . . . . 4 2 Damage Inflicted 42715 | . 509 320 . . 755 1910 2189 2471 2733 367 2186 115 718 1100 1515 2509 4434 1060 2281 9859 5684 Guns 14679 | . 509 276 . . 755 606 . 75 1084 . 21 41 156 . . 470 1155 211 818 7641 861 Cannons 2455 | . . . . . . . . . 98 . 138 52 80 . 26 327 33 101 169 . 1431 Explosions 9304 | . . 44 . . . 1304 . 926 578 . 1296 . 482 . . 221 1765 748 . 93 1847 Melee 16091 | . . . . . . . 2189 1470 973 367 618 . . 1100 1447 1491 1481 . 1294 2125 1536 Ramming 9 | . . . . . . . . . . . . . . . . . . . . . 9 Kinetic 13003 | . 438 . . . . . . 31 1084 . 159 41 156 . . 470 1155 149 818 7641 861 Thermal 3882 | . 71 276 . . 755 606 . 44 98 . 113 74 80 . 68 327 215 498 169 . 488 Explosive 6665 | . . 44 . . . 1304 . 926 374 . 1296 . 482 . . . 1276 . . . 963 Electromagnetic 3065 | . . . . . . . . . 204 . . . . . . 221 307 413 . 93 1827 Impact . | . . . . . . . . . . . . . . . . . . . . . . Slashing 12983 | . . . . . . . 2189 1470 973 367 618 . . 1100 132 1491 1224 . 1294 2125 . Piercing 3108 | . . . . . . . . . . . . . . . 1315 . 257 . . . 1536 Highest Corruption 100 | . . . . . . . . . 3 3 3 . . . 6 6 2 18 27 28 100 Average Corruption 6 | . . . . . . . . . 2 3 2 . . . 6 1 1 13 16 12 10 Corruption Purged 49 | . . . . . . . . . . . 3 . . . . 5 2 . 20 4 15 Effects 386 | . . . . . . . . . 30 9 10 . . . 21 20 13 18 38 162 65 Message Errors 92 | . . . . . . . . . 5 2 1 . . . 7 6 5 8 6 35 17 Matter Fused 86 | . . . . . . . . . 11 1 4 . . . 4 2 . 1 9 40 14 Heat Flow Errors 49 | . . . . . . . . . 3 3 1 . . . 3 2 3 . 2 21 11 Energy Discharges 38 | . . . . . . . . . 5 2 1 . . . 1 2 3 2 4 11 7 Parts Rejected 4 | . . . . . . . . . . . . . . . 1 . . . 1 2 . Data Loss (minor) 63 | . . . . . . . . . 6 1 3 . . . 4 7 1 4 7 20 10 Data Loss (major) 7 | . . . . . . . . . . . . . . . . . . 1 . 6 . Misfires 19 | . . . . . . . . . . . . . . . 1 . . 2 3 11 2 Alerts 4 | . . . . . . . . . . . . . . . . . . . 2 1 1 Misdirections 4 | . . . . . . . . . . . . . . . . . . . . 1 3 Weapon Failures 20 | . . . . . . . . . . . . . . . . 1 1 . 4 14 . Overload Shots 2 | . . . . . . . . . . . . . . . . . . 2 . . . Overflow Damage 3905 | . . . . . . 24 430 348 24 99 280 20 13 490 . 441 566 . 442 287 441 Projectiles 152 | . . . . . . . . . . . . 20 . . . 27 . . . . 105 Explosions 206 | . . . . . . 24 . 64 24 . 7 . 13 . . . 32 . . . 42 Melee 3547 | . . . . . . . 430 284 . 99 273 . . 490 . 414 534 . 442 287 294 Knockbacks 1 | . . . . . . . . . . . 1 . . . . . . . . . . Impact . | . . . . . . . . . . . . . . . . . . . . . . Kinetic 1 | . . . . . . . . . . . 1 . . . . . . . . . . Secondary . | . . . . . . . . . . . . . . . . . . . . . . Self-Inflicted Damage 635 | . . . . . . 111 . 115 148 . . . . . . 28 57 . . 43 133 Shots 32 | . . . . . . 6 . 4 5 . . . . . . 4 2 . . 2 9 Rammed 1 | . . . . . . . . . . . . . . . . . . . . 1 . Targets Rammed 2 | . . . . . . . . . . . . . . . . . . . . 1 1 Kicked 1 | . . . . . . . . . . . . . . . . . . . . . 1 Crushed . | . . . . . . . . . . . . . . . . . . . . . . Highest Temperature 685 | . 57 144 . . 338 226 10 87 258 266 181 98 120 10 226 276 268 315 446 254 685 Average Temperature 94 | . 12 43 . . 78 88 7 34 50 125 45 38 48 6 86 89 64 114 254 75 126 Received Heat Transfer 3189 | . 195 87 . . 45 396 126 99 60 . 135 . 90 . . 72 318 21 135 990 420 Effects 34 | . . . . . . . . . . . . . . . . . . 4 15 . 15 Shutdowns 9 | . . . . . . . . . . . . . . . . . . . 3 . 6 Energy Bleed 3 | . . . . . . . . . . . . . . . . . . . 2 . 1 Interference 7 | . . . . . . . . . . . . . . . . . . 4 3 . . Short Circuit 1 | . . . . . . . . . . . . . . . . . . . 1 . . Damage (minor) 4 | . . . . . . . . . . . . . . . . . . . 1 . 3 Damage (major) 8 | . . . . . . . . . . . . . . . . . . . 5 . 3 Damage (core) 2 | . . . . . . . . . . . . . . . . . . . . . 2 Siege Activations 6 | . . . . . . . . . . . . . . . . 1 1 . . 4 . Total Turns 172 | . . . . . . . . . . . . . . . . 18 17 . . 137 . Longest Duration 57 | . . . . . . . . . . . . . . . . 18 17 . . 57 . Robots Corrupted 13 | . . . . . . . . . . . . . . . . 1 . 2 . . 10 Combat Hostiles 12 | . . . . . . . . . . . . . . . . 1 . 2 . . 9 Parts Fried 28 | . . . . . . . . . 1 . . . . . . 3 1 3 . . 20 Impact Corruptions . | . . . . . . . . . . . . . . . . . . . . . . Robots Melted 1 | . . . . . . . . . . . . . . . . 1 . . . . . Combat Hostiles 1 | . . . . . . . . . . . . . . . . 1 . . . . . Parts Melted 13 | . 1 1 . . 6 . . . . . 3 . . . . 1 . . . . 1 Heat Transferred 6369 | . 222 814 . . 1597 1170 . 72 111 . 370 92 111 . 185 450 250 325 250 . 350 Parts Sabotaged 4 | . . . . . . . . . . . . . . . . . . . . 4 . Parts Stolen . | . . . . . . . . . . . . . . . . . . . . . . Parts Stripped . | . . . . . . . . . . . . . . . . . . . . . . Power Chain Reactions 9 | . . . . . . . . . . . . . . . . . 4 1 . 2 2 Missiles Intercepted . | . . . . . . . . . . . . . . . . . . . . . . Alert | -11 -10 -10 -10 -9 -8 -8 -8 -8 -7 -7 -7 -7 -6 -6 -6 -6 -6 -6 -6 -6 -5 ------- Run | Scr Mat Min Exi Min Mat Gar Sto Gar Fac Low Low Zio Pro Fac Was Fac Ext Cet Arc Hub Fac Peak Influence 1300 | . 321 112 . . 173 689 450 911 478 . . . . 74 19 172 535 682 453 1300 767 Initial 627 | . . 12 . . . 10 335 226 478 . . . . 12 19 . 68 279 238 90 627 Average 248 | . 131 58 . . 72 423 368 536 166 . . . . 31 9 42 284 500 311 381 284 Maximum Alert Level 4 | . 1 . . . . 2 2 3 2 . . . . . . . 2 2 2 4 3 Low Security (%) 54 | 100 88 100 . 100 100 14 . . 68 . . . . 100 100 100 40 . . 38 48 Level 1 17 | . 11 . . . . 12 60 23 19 . . . . . . . 14 16 78 20 23 Level 2 22 | . . . . . . 73 39 62 12 . . . . . . . 45 83 21 17 22 Level 3 5 | . . . . . . . . 13 . . . . . . . . . . . 19 5 Level 4 . | . . . . . . . . . . . . . . . . . . . . 2 . Level 5 . | . . . . . . . . . . . . . . . . . . . . . . High Security . | . . . . . . . . . . . . . . . . . . . . . . Max Security . | . . . . . . . . . . . . . . . . . . . . . . Squads Dispatched 50 | . 2 . . . . . 3 . 9 . 1 . . 1 . 4 2 . . 18 10 Investigation 10 | . . . . . . . . . 1 . . . . . . 1 1 . . 6 1 Extermination 17 | . . . . . . . . . 6 . . . . . . 2 . . . 5 4 Reinforcement 20 | . 2 . . . . . 3 . 2 . . . . 1 . 1 1 . . 6 4 Assault 2 | . . . . . . . . . . . 1 . . . . . . . . 1 . Garrison 1 | . . . . . . . . . . . . . . . . . . . . . 1 Intercept . | . . . . . . . . . . . . . . . . . . . . . . Construction Impeded 6 | . . . . . . . 2 . . . . . . . . . 1 . . . 3 Haulers Reinforced 2 | . . . . . . . . . . . . . . . . . . . . 2 . Active Scanning Responses . | . . . . . . . . . . . . . . . . . . . . . . Cargo Convoy Interrupts 1 | . . . . . . . . . . . . . . . . . . . . . 1 Stealth | -11 -10 -10 -10 -9 -8 -8 -8 -8 -7 -7 -7 -7 -6 -6 -6 -6 -6 -6 -6 -6 -5 --------- Run | Scr Mat Min Exi Min Mat Gar Sto Gar Fac Low Low Zio Pro Fac Was Fac Ext Cet Arc Hub Fac Distress Signals 17 | . 2 . . . 2 . 3 . 2 . . . . . . . 2 1 . 2 3 Communications Jammed 15 | . . . . . . . . . . . . . . 7 . 3 5 . . . . Distress Signals 15 | . . . . . . . . . . . . . . 7 . 3 5 . . . . Times Spotted 400 | . 15 5 . . 13 19 22 26 35 . 17 2 13 1 6 22 38 19 27 82 38 Peak Tracking Total 15 | . 4 2 . . 4 4 7 6 3 . 9 1 5 1 2 5 15 5 1 13 6 Tactical Retreats 16 | . 1 1 . . . . 1 2 . . . . . . . 1 2 . 1 6 1 Traps | -11 -10 -10 -10 -9 -8 -8 -8 -8 -7 -7 -7 -7 -6 -6 -6 -6 -6 -6 -6 -6 -5 ------- Run | Scr Mat Min Exi Min Mat Gar Sto Gar Fac Low Low Zio Pro Fac Was Fac Ext Cet Arc Hub Fac Traps Triggered 20 | . . . . . . 3 . . 6 . . . . 1 . 3 1 . . 4 2 Indirectly 2 | . . . . . . . . . . . . . . . . . . . . 2 . Trap Hack Attempts . | . . . . . . . . . . . . . . . . . . . . . . Triggered . | . . . . . . . . . . . . . . . . . . . . . . Disarmed . | . . . . . . . . . . . . . . . . . . . . . . Reprogrammed . | . . . . . . . . . . . . . . . . . . . . . . Reused . | . . . . . . . . . . . . . . . . . . . . . . Traps Extracted . | . . . . . . . . . . . . . . . . . . . . . . Installed . | . . . . . . . . . . . . . . . . . . . . . . Triggered 2 | . . . . . . . . . . 1 . . . . . . . . . . 1 Machines | -11 -10 -10 -10 -9 -8 -8 -8 -8 -7 -7 -7 -7 -6 -6 -6 -6 -6 -6 -6 -6 -5 ---------- Run | Scr Mat Min Exi Min Mat Gar Sto Gar Fac Low Low Zio Pro Fac Was Fac Ext Cet Arc Hub Fac Machines Disabled 60 | . . 1 . . 1 2 1 3 4 . . 2 . 1 . 2 4 6 3 24 6 Max in Single Turn 8 | . . 1 . . 1 1 1 1 1 . . 1 . 1 . 1 1 1 1 8 2 Garrison Access 4 | . . . . . . . . . . . . . . . . 3 . . . 1 . Garrison Relay 5 | . . . . . . 2 . 3 . . . . . . . . . . . . . Network Hub 3 | . . . . . . . . . . . . . . . . . . . . 3 . Machines Sabotaged 1 | . . . . . . . . . . . . . . . . . . . . 1 . Garrisons Compromised 1 | . . . . . . . . . . . . . . . . . . . . . 1 Overloaded Fab Kills . | . . . . . . . . . . . . . . . . . . . . . . Fab Network Shutdowns . | . . . . . . . . . . . . . . . . . . . . . . Hacking | -11 -10 -10 -10 -9 -8 -8 -8 -8 -7 -7 -7 -7 -6 -6 -6 -6 -6 -6 -6 -6 -5 --------- Run | Scr Mat Min Exi Min Mat Gar Sto Gar Fac Low Low Zio Pro Fac Was Fac Ext Cet Arc Hub Fac Machines Accessed 85 | . 6 . 2 . 6 . 3 . 17 2 1 1 . 3 . 14 13 . . 10 7 Terminals 55 | . 6 . . . 4 . 2 . 10 . . . . 2 . 6 13 . . 9 3 Fabricators 4 | . . . . . . . . . 2 . . . . . . 1 . . . . 1 Repair Stations 6 | . . . . . . . . . 3 . . . . 1 . 1 . . . . 1 Recycling Units 1 | . . . . . . . . . . . . . . . . 1 . . . . . Scanalyzers 4 | . . . . . 1 . . . 1 . . . . . . 1 . . . . 1 Garrison Access 9 | . . . . . 1 . 1 . 1 . . . . . . 4 . . . 1 1 Total Hacks 225 | . 26 . 2 . 15 . 5 . 44 7 1 3 . 6 . 32 19 . . 30 35 Successful 124 | . 18 . 2 . 12 . 4 . 19 7 1 3 . 4 . 20 6 . . 15 13 Failed 100 | . 7 . . . 3 . 1 . 25 . . . . 2 . 12 13 . . 15 22 Catastrophic 20 | . . . . . . . 1 . 7 . . . . . . 1 4 . . 2 5 Database Lockouts 1 | . 1 . . . . . . . . . . . . . . . . . . . . Manual 86 | . 20 . 1 . 2 . 2 . 16 . . . . 1 . 11 6 1 . 16 10 Terminals 159 | . 26 . . . 9 . 3 . 29 . . . . 4 . 15 19 . . 28 26 Fabricators 10 | . . . . . . . . . 8 . . . . . . 1 . . . . 1 Repair Stations 11 | . . . . . . . . . 4 . . . . 2 . 2 . . . . 3 Recycling Units 4 | . . . . . . . . . . . . . . . . 4 . . . . . Scanalyzers 10 | . . . . . 5 . . . 1 . . . . . . 2 . . . . 2 Garrison Access 18 | . . . . . 1 . 2 . 2 . . . . . . 8 . . . 2 3 Terminal Hacks 63 | . 13 . 2 . 6 . 1 . 7 7 1 3 . 1 . 4 6 . . 7 5 Record 8 | . . . 1 . . . . . 1 6 . . . . . . . . . . . Part Schematic 11 | . 3 . . . . . . . 3 . . 3 . . . . . . . 2 . Robot Analysis 4 | . 3 . . . . . . . 1 . . . . . . . . . . . . Prototype ID Bank 2 | . . . . . . . . . 1 . . . . . . . . . . . 1 Open Door 9 | . . . . . . . . . . 1 1 . . . . 1 6 . . . . Branch Access Points 2 | . . . . . . . . . 1 . . . . . . 1 . . . . . Terminal Index 4 | . 1 . . . 1 . . . . . . . . . . . . . . 1 1 Garrison Index 1 | . . . . . 1 . . . . . . . . . . . . . . . . Alert Level 1 | . . . . . 1 . . . . . . . . . . . . . . . . Unreport Threat 4 | . . . . . 1 . . . . . . . . . . . . . . . 3 Locate Traps 1 | . 1 . . . . . . . . . . . . . . . . . . . . Maintenance Status 1 | . 1 . . . . . . . . . . . . . . . . . . . . Recall Reinforcements 1 | . 1 . . . . . . . . . . . . . . . . . . . . Hauler Manifests 5 | . . . . . 2 . 1 . . . . . . . . . . . . 2 . Registered Components 1 | . 1 . . . . . . . . . . . . . . . . . . . . Zone Layout 7 | . 2 . . . . . . . . . . . . 1 . 2 . . . 2 . EX-Prototype ID Bank 1 | . . . 1 . . . . . . . . . . . . . . . . . . Fabricator Hacks 4 | . . . . . . . . . 4 . . . . . . . . . . . . Load Schematic 2 | . . . . . . . . . 2 . . . . . . . . . . . . Build 2 | . . . . . . . . . 2 . . . . . . . . . . . . Repair Station Hacks 6 | . . . . . . . . . 2 . . . . 2 . . . . . . 2 Scan Component 3 | . . . . . . . . . 1 . . . . 1 . . . . . . 1 Repair 3 | . . . . . . . . . 1 . . . . 1 . . . . . . 1 Recycling Unit Hacks 2 | . . . . . . . . . . . . . . . . 2 . . . . . Retrieve Matter 2 | . . . . . . . . . . . . . . . . 2 . . . . . Scanalyzer 8 | . . . . . 5 . . . . . . . . . . 2 . . . . 1 Insert Component 5 | . . . . . 3 . . . . . . . . . . 1 . . . . 1 Analyze 3 | . . . . . 2 . . . . . . . . . . 1 . . . . . Garrison Access Hacks 15 | . . . . . 1 . 2 . 2 . . . . . . 7 . . . 2 1 Unlock Access 3 | . . . . . 1 . 1 . 1 . . . . . . . . . . . . Seal Access 4 | . . . . . . . . . . . . . . . . 3 . . . 1 . Coupler Status 8 | . . . . . . . 1 . 1 . . . . . . 4 . . . 1 1 Unauthorized Hacks 26 | . 5 . . . . . 1 . 4 . . . . 1 . 5 . . . 6 4 Terminals 20 | . 5 . . . . . 1 . 3 . . . . 1 . 2 . . . 6 2 Assimilate 3 | . 1 . . . . . . . 1 . . . . . . . . . . 1 . Botnet 11 | . 3 . . . . . 1 . 2 . . . . 1 . 2 . . . . 2 Detonate 2 | . . . . . . . . . . . . . . . . . . . . 2 . Operators 1 | . 1 . . . . . . . . . . . . . . . . . . . . Sabotage 3 | . . . . . . . . . . . . . . . . . . . . 3 . Fabricators 3 | . . . . . . . . . 1 . . . . . . 1 . . . . 1 Prioritize 1 | . . . . . . . . . 1 . . . . . . . . . . . . Haulers 2 | . . . . . . . . . . . . . . . . 1 . . . . 1 Repair Stations 1 | . . . . . . . . . . . . . . . . 1 . . . . . Mechanics 1 | . . . . . . . . . . . . . . . . 1 . . . . . Recycling Units . | . . . . . . . . . . . . . . . . . . . . . . Scanalyzers . | . . . . . . . . . . . . . . . . . . . . . . Garrison Access 2 | . . . . . . . . . . . . . . . . 1 . . . . 1 Eject 2 | . . . . . . . . . . . . . . . . 1 . . . . 1 Data Cores Recovered 1 | . . . . . . . . . . . . . . . . 1 . . . . . Used 1 | . . . . . . . . . . . . . . . . 1 . . . . . Hacking Detections 67 | . 5 . . . 5 . 3 . 17 . . . . 3 . 10 11 . . 8 5 Full Trace Events 2 | . . . . . . . . . 1 . . . . . . . 1 . . . . Feedback Events . | . . . . . . . . . . . . . . . . . . . . . . Feedback Blocked . | . . . . . . . . . . . . . . . . . . . . . . Robot Schematics Acquired . | . . . . . . . . . . . . . . . . . . . . . . Robots Built . | . . . . . . . . . . . . . . . . . . . . . . Matter . | . . . . . . . . . . . . . . . . . . . . . . Time . | . . . . . . . . . . . . . . . . . . . . . . Total Robot Build Rating . | . . . . . . . . . . . . . . . . . . . . . . Part Schematics Acquired 14 | . 3 . . . 2 . . . 3 . . 3 . . . 1 . . . 2 . Parts Built 2 | . . . . . . . . . 2 . . . . . . . . . . . . Matter 314 | . . . . . . . . . 314 . . . . . . . . . . . . Time 115 | . . . . . . . . . 115 . . . . . . . . . . . . Total Part Build Rating 7 | . . . . . . . . . 7 . . . . . . . . . . . . Parts Repaired 2 | . . . . . . . . . 1 . . . . 1 . . . . . . . Time 193 | . . . . . . . . . 38 . . . . 19 . . . . . . 136 Parts Recycled . | . . . . . . . . . . . . . . . . . . . . . . Recycled Matter . | . . . . . . . . . . . . . . . . . . . . . . Retrieved Matter . | . . . . . . . . . . . . . . . . . . . . . . Retrieved Components . | . . . . . . . . . . . . . . . . . . . . . . Parts Scanalyzed 4 | . . . . . 2 . . . . . . . . . . 1 . . . . 1 Part Schematics Acquired 3 | . . . . . 2 . . . . . . . . . . 1 . . . . . Parts Damaged . | . . . . . . . . . . . . . . . . . . . . . . Bothacking | -11 -10 -10 -10 -9 -8 -8 -8 -8 -7 -7 -7 -7 -6 -6 -6 -6 -6 -6 -6 -6 -5 ------------ Run | Scr Mat Min Exi Min Mat Gar Sto Gar Fac Low Low Zio Pro Fac Was Fac Ext Cet Arc Hub Fac Used RIF Installer 2 | . . . . . . 1 . 1 . . . . . . . . . . . . . Coupler Efficiency 1 | . . . . . . . . 1 . . . . . . . . . . . . . Robots Hacked 67 | . . . . . . . 12 5 14 . 2 . 5 3 6 7 6 . . 6 1 Non-combat 16 | . . . . . . . . . 9 . . . . 3 . 3 . . . . 1 Combat 51 | . . . . . . . 12 5 5 . 2 . 5 . 6 4 6 . . 6 . Robot Hacks Applied 73 | . . . . . . . 12 5 17 . 2 . 5 3 6 10 6 . . 6 1 parse_system 1 | . . . . . . . . . 1 . . . . . . . . . . . . no_distress 1 | . . . . . . . . . . . . . . 1 . . . . . . . find_chute 3 | . . . . . . . . . 1 . . . . 2 . . . . . . . find_fabricator 1 | . . . . . . . . . 1 . . . . . . . . . . . . drop_inventory 4 | . . . . . . . . . 4 . . . . . . . . . . . . purge_threat 1 | . . . . . . . . . 1 . . . . . . . . . . . . locate_traps 2 | . . . . . . . . . 1 . . . . . . 1 . . . . . block_reporting 1 | . . . . . . . . . . . . . . . . 1 . . . . . map_route 6 | . . . . . . . . . 3 . . . . . . 2 . . . . 1 ignore_targets 6 | . . . . . . . . . . . . . . . 6 . . . . . . scatter_targeting 2 | . . . . . . . 1 . . . . . 1 . . . . . . . . disrupt_area 1 | . . . . . . . . . . . . . . . . . 1 . . . . overload_power 1 | . . . . . . . . . . . . . . . . . 1 . . . . amplify_resonance 1 | . . . . . . . . . . . . . 1 . . . . . . . . wipe_record 2 | . . . . . . . . . . . . . . . . 2 . . . . . reboot_system 22 | . . . . . . . 5 4 4 . 1 . 1 . . 3 3 . . 1 . go_dormant 1 | . . . . . . . . . . . . . . . . . . . . 1 . overwrite_iff 16 | . . . . . . . 6 1 . . 1 . 2 . . 1 1 . . 4 . formatsys_high 1 | . . . . . . . . . 1 . . . . . . . . . . . . Relay Couplers Released 36 | . . . . . . 8 . 13 . . . . . . . 5 . . . 3 7 Ejected 8 | . . . . . . . . . . . . . . . . 4 . . . . 4 Machine Destruction 22 | . . . . . . 8 . 13 . . . . . . . 1 . . . . . Programmers 6 | . . . . . . . . . . . . . . . . . . . . 3 3 Attached 17 | . . . . . . 1 2 2 4 . . . . . 1 3 1 . . 1 2 Robots Rewired 16 | . . . . . . . . . . . 2 . . 1 . . 13 . . . . Allies Hacked . | . . . . . . . . . . . . . . . . . . . . . . Hacks Repelled . | . . . . . . . . . . . . . . . . . . . . . . Allies | -11 -10 -10 -10 -9 -8 -8 -8 -8 -7 -7 -7 -7 -6 -6 -6 -6 -6 -6 -6 -6 -5 -------- Run | Scr Mat Min Exi Min Mat Gar Sto Gar Fac Low Low Zio Pro Fac Was Fac Ext Cet Arc Hub Fac Total Allies 48 | . 1 . . 3 . . 6 1 2 . 3 . 2 1 . 1 23 . . 4 1 Largest Group 12 | . 1 1 1 4 4 . 1 1 1 1 2 2 3 1 . 1 12 6 2 1 1 Highest-Rated Group 338 | . 10 10 10 50 50 . 16 16 26 26 62 62 105 12 . 41 338 309 196 29 41 Highest-Rated Ally 159 | . 10 10 10 16 16 . 16 16 26 26 49 32 47 12 . 41 159 159 159 29 41 Total Orders 8 | . . . . . . . . . . . 1 2 . . . . 5 . . . . STAY 5 | . . . . . . . . . . . 1 1 . . . . 3 . . . . FOLLOW 3 | . . . . . . . . . . . . 1 . . . . 2 . . . . Ally Attacks 313 | . . . . . 25 . 16 4 1 . 6 10 12 3 . 3 154 62 3 14 . Total Damage 7497 | . . . . . 257 . 165 46 38 . 175 462 297 40 . 106 4096 1544 63 208 . Kills 59 | . . . . . 7 . 1 1 . . 2 3 3 . . . 27 12 2 1 . Allies Corrupted . | . . . . . . . . . . . . . . . . . . . . . . Allies Melted 1 | . . . . . . . . . . . . . . . . . 1 . . . . Field Lobotomies 2 | . . . . . . . . . . . . . . . . . 1 . . . 1 Intel | -11 -10 -10 -10 -9 -8 -8 -8 -8 -7 -7 -7 -7 -6 -6 -6 -6 -6 -6 -6 -6 -5 ------- Run | Scr Mat Min Exi Min Mat Gar Sto Gar Fac Low Low Zio Pro Fac Was Fac Ext Cet Arc Hub Fac Robot Analysis Total 4 | . 3 . . . . . . . 1 . . . . . . . . . . . . Derelict Logs Recovered 6 | . . 1 . 1 . . . . . 1 . 1 2 . . . . . . . . Drone Launches . | . . . . . . . . . . . . . . . . . . . . . . Drone Recoveries . | . . . . . . . . . . . . . . . . . . . . . . Exploration | -11 -10 -10 -10 -9 -8 -8 -8 -8 -7 -7 -7 -7 -6 -6 -6 -6 -6 -6 -6 -6 -5 ------------- Run | Scr Mat Min Exi Min Mat Gar Sto Gar Fac Low Low Zio Pro Fac Was Fac Ext Cet Arc Hub Fac Turns Passed 26728 | 5 918 511 427 80 866 865 713 1426 3328 535 1411 750 532 702 842 2847 2186 635 778 4277 2094 Spaces Moved 14495 | 3 547 285 314 54 564 525 336 596 2178 403 780 388 343 429 456 1479 1163 332 341 1920 1059 Core . | . . . . . . . . . . . . . . . . . . . . . . Treads 5840 | . 87 285 84 . . 269 336 596 114 . 136 . . . 72 1479 699 284 341 1058 . Legs 2310 | 3 460 . . . . . . . . . . . . . . . 464 48 . 558 777 Wheels 6345 | . . . 230 54 564 256 . . 2064 403 644 388 343 429 384 . . . . 304 282 Hover . | . . . . . . . . . . . . . . . . . . . . . . Flight . | . . . . . . . . . . . . . . . . . . . . . . Fastest Speed 93 | 120 120 160 125 125 125 115 145 145 115 130 130 130 130 130 130 160 120 160 160 100 93 Average Speed 147 | 120 136 160 134 125 125 130 145 145 128 130 153 130 130 130 155 160 144 165 164 175 154 Slowest Speed 360 | 120 200 160 160 125 125 145 145 145 148 130 265 130 130 130 160 160 260 200 260 260 360 Overloaded Moves . | . . . . . . . . . . . . . . . . . . . . . . Propulsion Burnouts . | . . . . . . . . . . . . . . . . . . . . . . Robots Hopped . | . . . . . . . . . . . . . . . . . . . . . . Cave-ins Triggered 1 | . . . . . . . . . . . . . . . . . . . . 1 . Exploration Rate (%) 57 | 2 91 64 70 14 32 70 45 81 59 60 81 14 59 13 99 42 95 61 97 86 22 Regions Visited 21 Branch Regions 12 Pre-discovered Areas 5 | . . 1 1 1 . . . . . 2 . . . . . . . . . . . Known Exits Taken 6 | . . . . . 1 . 1 . 1 . . . 1 . . 1 . . . 1 . Unknown Exits Taken 11 | 1 1 1 1 1 . . . . . 1 1 1 . . . . 1 1 1 . . Scrap Searched 8 | . . 1 . . . . . . . 2 3 . 2 . . . . . . . . Spaces Dug 110 | . . . . . 7 . 5 1 9 . 1 1 . 9 . 50 4 . . 14 9 Terrain Destroyed 842 | . . 9 . . 7 45 5 16 29 . 76 2 40 9 . 52 71 13 4 383 81 Melee 74 | . . . . . . . 5 1 9 . 1 1 . 9 . 21 4 . . 14 9 Projectile 70 | . . . . . . . . . . . 1 1 1 . . 15 1 1 4 33 13 AOE 697 | . . 9 . . 7 45 . 15 20 . 74 . 39 . . 16 66 12 . 336 58 Terrain Rammed . | . . . . . . . . . . . . . . . . . . . . . . Walls Destroyed . | . . . . . . . . . . . . . . . . . . . . . . Machines Disabled . | . . . . . . . . . . . . . . . . . . . . . . Actions | -11 -10 -10 -10 -9 -8 -8 -8 -8 -7 -7 -7 -7 -6 -6 -6 -6 -6 -6 -6 -6 -5 --------- Run | Scr Mat Min Exi Min Mat Gar Sto Gar Fac Low Low Zio Pro Fac Was Fac Ext Cet Arc Hub Fac Total 18261 | 5 648 313 319 66 678 625 501 1087 2595 408 932 620 408 532 525 1830 1548 397 481 2409 1334 Wait 1790 | . 24 10 3 13 41 24 96 414 218 . 83 211 27 35 1 187 95 28 66 151 63 Move 14477 | 2 546 284 313 53 564 524 336 595 2177 402 779 387 342 429 455 1478 1162 331 340 1919 1059 Hop . | . . . . . . . . . . . . . . . . . . . . . . Pick Up 182 | 1 13 4 1 . 15 3 4 8 33 . 1 5 6 4 5 14 12 3 6 28 16 Fast Attach 67 | . 3 . . . . 2 1 . 3 . 2 . . 1 4 4 4 4 1 15 23 Attach 100 | . 2 . . . 6 3 1 4 16 . . . . 4 2 12 10 1 5 16 18 Detach 12 | . . . . . . . . . 1 . . . . . 3 . 1 . . 2 5 Swap 269 | . 7 1 1 . 9 14 5 16 38 3 10 3 11 9 5 37 27 10 11 37 15 Drop 165 | 2 14 . 1 . 18 2 5 1 21 . 1 5 6 2 13 13 8 8 2 26 17 Fire 646 | . 39 14 . . 25 44 . 18 60 . 31 7 15 13 10 46 44 12 36 167 65 Melee 359 | . . . . . . 2 53 31 28 3 7 2 1 21 27 39 32 . 14 47 52 Ram . | . . . . . . . . . . . . . . . . . . . . . . Kick 1 | . . . . . . . . . . . . . . . . . . . . . 1 Crush 1 | . . . . . . . . . . . . . . . . . . . . 1 . Escape Stasis 11 | . . . . . . 7 . . . . . . . . . . 4 . . . . Rewire 181 | . . . . . . . . . . . 18 . . 14 . . 149 . . . . Trap . | . . . . . . . . . . . . . . . . . . . . . . Miscellaneous . | . . . . . . . . . . . . . . . . . . . . . . Route ------- -11/Scrapyard -10/Materials (discovered 4 exits: [*Mat x3] / [*Min]) -10/Mines (discovered 3 exits: [*Mat x2] / *Exi) -10/Exiles -9/Mines (discovered 2 exits: *Mat x2) -8/Materials -8/Garrison (discovered 3 exits: *Sto x3) -8/Storage -8/Garrison (discovered 3 exits: *Fac x3) -7/Factory (discovered 6 exits: *Fac x3 / *Low x2 / Gar) -7/Lower Caves -7/Lower Caves (discovered 2 exits: *Fac / *Zio) -7/Zion -6/Proximity Caves -6/Factory (discovered 4 exits: *Fac x2 / Ext x2) -6/Waste -6/Factory (discovered 6 exits: *Fac x2 / *Low x2 / *Ext x2) -6/Extension (discovered 2 exits: *Fac / *Cet) -6/Cetus -6/Archives (discovered 3 exits: *Fac / *Hub x2) -6/Hub_04(d) (discovered 3 exits: *Fac x3) -5/Factory History --------- Turn | Location | Event 2 | -11/Scrapyard | Discovered new exit (range 1) 6 | -11/Scrapyard | Entered Materials 251 | -10/Materials | Discovered new exit (range 9) 305 | -10/Materials | Build established: Mutant 370 | -10/Materials | Discovered new exit (range 13) 615 | -10/Materials | Discovered new exit (range 3) 670 | -10/Materials | Central database locked down 731 | -10/Materials | Discovered new exit (range 11) 924 | -10/Materials | Entered Mines 924 | -10/Mines | Accompanied by 1 ally 926 | -10/Mines | Met a Derelict bent on vengeance 980 | -10/Mines | Discovered new exit (range 9) 1123 | -10/Mines | Learned location of Zion (-7) 1181 | -10/Mines | Found a hidden stash of uninstalled traps 1235 | -10/Mines | Discovered new exit (range 11) 1423 | -10/Mines | Deemed a non-threat by the Exiles lab entrance 1423 | -10/Mines | Discovered new exit (range 5) 1435 | -10/Mines | Entered Exiles 1435 | -10/Exiles | Accompanied by 1 ally 1474 | -10/Exiles | Met 8R-AWN 1503 | -10/Exiles | Met EX-HEX 1565 | -10/Exiles | Met EX-DEC 1598 | -10/Exiles | Met EX-BIN 1616 | -10/Exiles | Aligned with FarCom system 1618 | -10/Exiles | Given EX-Vault access code 1650 | -10/Exiles | Opened EX-Vault 1661 | -10/Exiles | Found Field Lobotomy Kit 1692 | -10/Exiles | Warned to stay clear of 0b10 Research branches 1845 | -10/Exiles | Discovered new exit (range 14) 1862 | -10/Exiles | Left Exiles lab with Field Lobotomy Kit 1862 | -10/Exiles | Entered Mines 1862 | -9/Mines | Accompanied by 1 ally 1865 | -9/Mines | Assisted by bots powering up and referring to "LRC-V3" 1884 | -9/Mines | Discovered new exit (range 7) 1906 | -9/Mines | Discovered new exit (range 9) 1942 | -9/Mines | Entered Materials 1942 | -8/Materials | Accompanied by 4 allies 1942 | -8/Materials | Evolved 4 slots: Propulsion x1, Utility x2, Weapon x1 2274 | -8/Materials | Build established: Commander-Skirmisher 2762 | -8/Materials | Build established: Skirmisher 2808 | -8/Materials | Identified exit to Garrison 2808 | -8/Materials | Entered Garrison 2832 | -8/Garrison | Triggered checkpoint 2838 | -8/Garrison | Triggered checkpoint 2887 | -8/Garrison | Triggered checkpoint 2981 | -8/Garrison | Discovered new exit (range 9) 3110 | -8/Garrison | Discovered new exit (range 10) 3228 | -8/Garrison | Discovered new exit (range 15) 3250 | -8/Garrison | Installed Relay Interface Framework 3306 | -8/Garrison | Triggered checkpoint 3343 | -8/Garrison | Garrison Relay disabled 3492 | -8/Garrison | Triggered checkpoint 3506 | -8/Garrison | Triggered checkpoint 3515 | -8/Garrison | Garrison Relay disabled 3673 | -8/Garrison | Entered Storage 3843 | -8/Storage | Build established: Bothacker-Mutant 4386 | -8/Storage | Identified exit to Garrison 4386 | -8/Storage | Entered Garrison 4410 | -8/Garrison | Build established: Mutant 4434 | -8/Garrison | Triggered checkpoint 4470 | -8/Garrison | Garrison Relay disabled 4536 | -8/Garrison | Triggered checkpoint 4731 | -8/Garrison | Core integrity fell below 50% 4856 | -8/Garrison | Discovered new exit (range 8) 4975 | -8/Garrison | Discovered new exit (range 10) 5053 | -8/Garrison | Build established: Skirmisher 5060 | -8/Garrison | Triggered checkpoint 5208 | -8/Garrison | Triggered checkpoint 5224 | -8/Garrison | Garrison Relay disabled 5524 | -8/Garrison | Discovered new exit (range 10) 5529 | -8/Garrison | Build established: Bothacker-Mutant 5544 | -8/Garrison | Expanded RIF knowledge: Coupler Efficiency 5732 | -8/Garrison | Triggered checkpoint 5766 | -8/Garrison | Garrison Relay disabled 5812 | -8/Garrison | Entered Factory 5812 | -7/Factory | Evolved 2 slots: Propulsion x1, Utility x1 6436 | -7/Factory | Discovered new exit (range 14) 6656 | -7/Factory | Repaired Hrd. Medium Armor Plating 6688 | -7/Factory | Build established: Bothacker-Skirmisher 7340 | -7/Factory | Discovered new exit (range 15) 7625 | -7/Factory | Identified exit to Factory 7892 | -7/Factory | Build established: Bothacker-Mutant 8105 | -7/Factory | Identified exit to Garrison 8190 | -7/Factory | Discovered new exit (range 47) 8427 | -7/Factory | Identified exit to Lower Caves 8581 | -7/Factory | Discovered exit to Factory (range 20) 8645 | -7/Factory | Lost 4 parts (2n1u1w) 8709 | -7/Factory | Fabricated Hrd. Medium Armor Plating? 8827 | -7/Factory | Fabricated Hvy. Rocket Launcher (x1) 9140 | -7/Factory | Entered Lower Caves 9140 | -7/Lower Caves | Accompanied by 1 ally 9283 | -7/Lower Caves | Encountered a Warlord checkpoint 9349 | -7/Lower Caves | Learned Factory emergency access door positions 9349 | -7/Lower Caves | Learned Factory terminal intel 9540 | -7/Lower Caves | Build established: Bothacker-Skirmisher 9576 | -7/Lower Caves | Discovered new exit (range 7) 9675 | -7/Lower Caves | Entered another Lower Caves area 9675 | -7/Lower Caves | Accompanied by 1 ally 9715 | -7/Lower Caves | Attracted the attention of an 0b10 outpost 9755 | -7/Lower Caves | Destroyed 7 combat bots 10020 | -7/Lower Caves | Build established: Mutant 10175 | -7/Lower Caves | Discovered exit to Factory (range 7) 10891 | -7/Lower Caves | Discovered new exit (range 16) 11086 | -7/Lower Caves | Entered Zion 11086 | -7/Zion | Accompanied by 2 allies 11133 | -7/Zion | Learned 8 Factory zone layouts 11144 | -7/Zion | Discovered new exit (range 18) 11212 | -7/Zion | Found CR-A16's Pointy Stick 11277 | -7/Zion | Acquired unknown access codes intercepted by a Zionite 11575 | -7/Zion | RIF detected upon attempting to enter Zion 11575 | -7/Zion | Attacked by Zionites 11785 | -7/Zion | Destroyed Imprinter 11793 | -7/Zion | Extracted access codes from Imprinter's data core 11836 | -7/Zion | Entered Proximity Caves 11836 | -6/Proximity Caves | Accompanied by 2 allies 12091 | -6/Proximity Caves | Build established: Gunner 12223 | -6/Proximity Caves | Learned location of 1 exit from Factory 12368 | -6/Proximity Caves | Entered Factory 12368 | -6/Factory | Evolved 2 slots: Utility x2 12369 | -6/Factory | Identified exit to Extension 12371 | -6/Factory | Identified exit to Factory 12373 | -6/Factory | Loaded intel: 22 terminal locations 12696 | -6/Factory | Repaired Hrd. Medium Armor Plating 12777 | -6/Factory | Discovered exit to Factory (range 6) 12946 | -6/Factory | Build established: Assassin 13070 | -6/Factory | Sucked down chute 13070 | -6/Factory | Entered Waste 13085 | -6/Waste | EMP discharged 13102 | -6/Waste | Spotted C-40 Crusher 13116 | -6/Waste | Spotted C-40 Crusher 13121 | -6/Waste | Spotted C-40 Crusher 13121 | -6/Waste | Spotted C-40 Crusher 13142 | -6/Waste | Destroyed C-40 Crusher 13145 | -6/Waste | Spotted C-40 Crusher 13151 | -6/Waste | Found Damper Plating 13175 | -6/Waste | Spotted C-40 Crusher 13185 | -6/Waste | EMP discharged 13230 | -6/Waste | Destroyed C-40 Crusher 13285 | -6/Waste | EMP discharged 13312 | -6/Waste | Discovered new exit (range 15) 13385 | -6/Waste | EMP discharged 13442 | -6/Waste | Build established: Mutant 13485 | -6/Waste | EMP discharged 13547 | -6/Waste | Destroyed C-40 Crusher 13585 | -6/Waste | EMP discharged 13626 | -6/Waste | Destroyed C-40 Crusher 13685 | -6/Waste | EMP discharged 13785 | -6/Waste | EMP discharged 13789 | -6/Waste | Destroyed C-40 Crusher 13885 | -6/Waste | EMP discharged 13912 | -6/Waste | Entered Factory 14642 | -6/Factory | Build established: Bothacker-Assassin 15157 | -6/Factory | Build established: Bothacker-Mutant 15469 | -6/Factory | Build established: Bothacker-Assassin 15551 | -6/Factory | Discovered new exit (range 15) 15739 | -6/Factory | Discovered exit to Factory (range 79) 15850 | -6/Factory | Discovered exit to Factory (range 9) 16111 | -6/Factory | Identified exit to Lower Caves 16759 | -6/Factory | Entered Extension 16827 | -6/Extension | Rescued a captive Derelict 16827 | -6/Extension | Rescued a captive Derelict 17011 | -6/Extension | Rescued a captive Derelict 17085 | -6/Extension | Build established: Scavenger-Mutant 17103 | -6/Extension | Rescued a captive Derelict 17366 | -6/Extension | Rescued a captive Derelict 17367 | -6/Extension | Rescued a captive Derelict 17617 | -6/Extension | Build established: Commander-Mutant 17715 | -6/Extension | Spotted B-75 Beast 17743 | -6/Extension | Allies destroyed B-75 Beast 17745 | -6/Extension | Spotted B-75 Beast 17751 | -6/Extension | Assimilated B-75 Beast with FLK Orb 17768 | -6/Extension | Revealed the true nature of CR-A16's Pointy Stick 17809 | -6/Extension | Disrupted transfer network 17940 | -6/Extension | Destroyed 9 combat bots 18051 | -6/Extension | Lost 3 parts (2n1u) 18137 | -6/Extension | Rescued a captive Derelict 18471 | -6/Extension | Rescued A7 18906 | -6/Extension | Discovered new exit (range 15) 18909 | -6/Extension | Discovered exit to Factory (range 15) 18945 | -6/Extension | Entered Cetus 18945 | -6/Cetus | Accompanied by 6 allies (A7) 18950 | -6/Cetus | Acquired a Cetus Manufacturing Module code from A7 18974 | -6/Cetus | Spotted Cetus Guard 18974 | -6/Cetus | Spotted Cetus Guard 18979 | -6/Cetus | Spotted Cetus Guard 18984 | -6/Cetus | Allies destroyed Cetus Guard 18985 | -6/Cetus | Spotted Cetus Guard 18987 | -6/Cetus | Destroyed Cetus Guard 18988 | -6/Cetus | Destroyed Cetus Guard 18991 | -6/Cetus | Destroyed Cetus Guard 19068 | -6/Cetus | Cetus Manufacturing Module disabled 19133 | -6/Cetus | Failed to start Cetus Manufacturing Module 19159 | -6/Cetus | Discovered new exit (range 15) 19348 | -6/Cetus | System corruption reached 10% 19406 | -6/Cetus | Escorted A7 to Cetus Mainframe 19580 | -6/Cetus | Entered Archives 19580 | -6/Archives | Accompanied by 2 allies (A7) 19585 | -6/Archives | Received a hacking code to weaken MAIN.C 19867 | -6/Archives | Discovered exit to Factory (range 16) 19885 | -6/Archives | Discovered new exit (range 16) 20092 | -6/Archives | Discovered new exit (range 15) 20121 | -6/Archives | Build established: Scavenger-Mutant 20358 | -6/Archives | Entered Hub_04(d) 21292 | -6/Hub_04(d) | Discovered exit to Factory (range 5) 21371 | -6/Hub_04(d) | Lost 4 parts (2n2w) 21707 | -6/Hub_04(d) | Discovered exit to Factory (range 16) 22511 | -6/Hub_04(d) | Build established: Mutant 22705 | -6/Hub_04(d) | Network Hub disabled 22758 | -6/Hub_04(d) | Spotted Lightning 22758 | -6/Hub_04(d) | Spotted Lightning 22758 | -6/Hub_04(d) | Spotted Lightning 22918 | -6/Hub_04(d) | Destroyed Lightning 22966 | -6/Hub_04(d) | Destroyed Lightning 22980 | -6/Hub_04(d) | Found Prototype Device 23028 | -6/Hub_04(d) | Build established: Scavenger-Skirmisher 23113 | -6/Hub_04(d) | Destroyed Lightning 23449 | -6/Hub_04(d) | Spotted Lightning 23451 | -6/Hub_04(d) | Spotted Lightning 23452 | -6/Hub_04(d) | Spotted Lightning 23455 | -6/Hub_04(d) | Destroyed Lightning 23504 | -6/Hub_04(d) | Destroyed Lightning 23510 | -6/Hub_04(d) | Destroyed Lightning 23582 | -6/Hub_04(d) | Found Prototype Processor 23582 | -6/Hub_04(d) | Identified Exp. Targeting Computer 23649 | -6/Hub_04(d) | Found Prototype Device 23649 | -6/Hub_04(d) | Identified EM Dispersion Field 23657 | -6/Hub_04(d) | Identified Exp. Phase Shifter 23661 | -6/Hub_04(d) | Found Exp. Targeting Computer 23884 | -6/Hub_04(d) | Build established: Scavenger-Mutant 23999 | -6/Hub_04(d) | Discovered exit to Factory (range 4) 24073 | -6/Hub_04(d) | Spotted Lightning 24107 | -6/Hub_04(d) | Core integrity fell below 50% 24113 | -6/Hub_04(d) | Spotted Lightning 24114 | -6/Hub_04(d) | Spotted Lightning 24138 | -6/Hub_04(d) | Destroyed Lightning 24174 | -6/Hub_04(d) | Destroyed Lightning 24215 | -6/Hub_04(d) | Destroyed Lightning 24234 | -6/Hub_04(d) | Found Prototype Energy Cannon 24374 | -6/Hub_04(d) | Crushed by falling debris 24443 | -6/Hub_04(d) | Network Hub disabled 24508 | -6/Hub_04(d) | Network Hub disabled 24558 | -6/Hub_04(d) | First assault squad dispatched 24635 | -6/Hub_04(d) | Entered Factory 24635 | -5/Factory | Evolved 2 slots: Power x1, Propulsion x1 24636 | -5/Factory | Identified EMDS 25733 | -5/Factory | System corruption reached 10% 26003 | -5/Factory | Garrison activated, responded to threat 26043 | -5/Factory | Lost 4 parts (1p2n1u) 26205 | -5/Factory | Spotted B-75 Beast 26210 | -5/Factory | Core integrity fell below 50% 26216 | -5/Factory | Destroyed B-75 Beast 26393 | -5/Factory | Cargo convoy interrupted 26629 | -5/Factory | Lost 4 parts (1p1n1u1w) 26668 | -5/Factory | System corruption reached 30% 26675 | -5/Factory | Lost 3 parts (1p1n1u) 26692 | -5/Factory | Assimilated H-66 Slayer with FLK Orb 26730 | -5/Factory | System corrupted Last Messages --------------- Dropped Gauss Rifle. Acquired Corrupted Gauss Rifle. Integrated Corrupted Gauss Rifle (+2). Kicked U-05 Engineer out of the way. Acquired 127 matter. ALERT: Rogue bot located, Programmers report to Factory Zone 3L. Acquired Corrupted Unknown Hackware. Identified Relay Coupler [Grunt]. Integrated Corrupted Relay Coupler [Grunt] (+2). Dropped Gauss Rifle. Acquired Corrupted Imp. Remote Datajack. Integrated Corrupted Imp. Remote Datajack (+6). System corrupted: Component data lost. Dropped Flexi-carbon Leg. Acquired Corrupted Com. Wheel. Integrated Corrupted Com. Wheel (+10). Dropped Com. Wheel. Acquired Corrupted Com. Wheel. Integrated Corrupted Com. Wheel (+6). Cogmind system terminally corrupted. Map ----- +----------------------------------------------------+ | ?????????????????????????????????????????????????? | | ?????????????????????????????????????????????????? | | ?????????????????????????????????????????????????? | | ?????????????????????????????????????????????????? | | ?????????????????????????????????????????????????? | | ?????????????????????????????????????????????????? | | ?????????????????????????????????????????????????? | | ???##############????????????????????????????????? | | ???# #????????????? ??????????????? | | ???# ! #????????????# ?????????????? | | #??# !["""" #????????????# ???????????? ? | | #??# = "" #??########### ???????????? ? | | #??# |[ " #??# """G""" # ##??????????? ? | | #??# " #??# """ """ # #???????????? # | | #??# " #??# # [ #???????# ?? | | #??# % % " #??# # %! #???????# ? | | #??#"" *% % #??# # = #???????# ?"" | | #??#" #### % # #???????# """ | | #??#"" + # # #???????# """ | | #??# =% # [# ] % # #???????# | | ##########+###### #####+##### ######### | | u u [%uk u | | [ u | | ==%= [ """ """ """ | | % =h = u % """ """ """ | | !|%@= % % """ """ """ | | #### ######+############+######+##### | | #?# # " = # * ## """ """ | | #?# # # """"""" # ## """ """ !! | | #?# # # """"""" # %% %## """ """ ! | | #?# # #?""""""" # %%+ % | | *#?# # #????"""" # ## = % | | #?# # #?????????# % ##* % | | #?# # #?????????# ## | | #?# # #?????????# ## | | #?# # #?????????# ## | | #### # #?????????# ## | | % # #?????????# ## | | # #?????????# ## | | #######+######?????????# ## | | #??????????????????????# ######### # | | " #??????????????????????########???????# # | | #????????????????????????????########## # | | ####### ###??????????????????# + # | | #??????????????????# """ ""# # | | #??????????????????# """ ""# # | | /??????????????????# """ ""# # | | #??????????????????# S# # | | ! #??????????????????# """ ""# # | | ! #??????????????????# """ ""# # | +----------------------------------------------------+ Best States ------------- Heat Dissipation 59 Energy Generation 57 Energy Capacity 950 Matter Stores 300 Matter Capacity 300 Sight Range 20 Terrain Scan Range 24 Terrain Scan Density 10 Jamming Range 12 Power Amplification 30 EM Shielding 2 Armor Coverage 3200 Resistance: EM 90 Utility Shielding 66 Weapon Shielding 66 Phase Shifting 20 Evasion (%) 75 Targeting Accuracy 24 Target Analysis 6 Recoil Reduction 4 Energy Filtering 50 Kinecelleration 30 Offensive Hacking 10 Relay Coupler Types 3 Relay Coupler Value 76 Item Schematics ----------------- Hcp. Storage Unit | -10/Materials | Hacked Lrg. Storage Unit | -10/Materials | Hacked Datajack | -10/Materials | Hacked Hrd. Medium Armor Plating | -8/Materials | Scanalyzed Imp. Datajack | -8/Materials | Scanalyzed Hvy. Rocket Launcher | -7/Factory | Hacked Imp. Particle Charger | -7/Factory | Hacked Force Field | -7/Factory | Hacked Hvy. Riot Gun | -7/Zion | Free Barrage Gun | -7/Zion | Free Battle Cannon | -7/Zion | Free Imp. Medium Armor Plating | -6/Factory | Scanalyzed Lyr. Heavy Armor Plating | -6/Hub_04(d) | Hacked KE Penetrator | -6/Hub_04(d) | Hacked Robot Schematics ------------------ None Fabricated ------------ Hrd. Medium Armor Plating | x1 | -7/Factory Hvy. Rocket Launcher | x1 | -7/Factory Alien Tech Used ----------------- None Achievements -------------- None Challenges ------------ None Game ------ Seed TransmissionSigixSheargun Manual? 0 Play Time 03:52:37 Cumulative 353.3 hours Start 2021.09.30 @ 22:25:24 End 2021.10.01 @ 02:32:24 Sessions 1 Manual Loads 0 Difficulty Rogue Special Mode None Game No. 371 Rogue 371 Adventurer 0 Explorer 0 Win Type - Total 7 Types 6/0/0/1/0/0/0/0/0 Lore% 79 Gallery% 90 Achievement% 69 Wizard Run 0 Options --------- ASCII 0 Keyboard 0 Movement Mouse Keybinds 1 Fullscreen 2 Font 24/Smallcaps Map View 76x50 Tactical HUD 1 Map Filters NONE Filters NONE Steam 1 RUN: d8560082-8e93-4410-ba3a-05b9073453cd